lending/lending_fUSD_20240206
["ID","MTS","AMOUNT","RATE_DAILY","PERIOD"]
[313359418,1707228647409,-255.41,0.0003599,10]
[313359419,1707228647418,-293.69123274,0.00042352,2]
[313359420,1707228647431,-8154.01546943,0.00042352,2]
[313359421,1707228647441,-434.57108079,0.000498,14]
[313359422,1707228647450,-477.10989089,0.000498,14]
[313359423,1707228647459,-477.1,0.000498,14]
[313359424,1707228647468,-909.0,0.0004984,2]
[313359425,1707228647478,-150.0,0.00049899,9]
[313359426,1707228647487,-150.0,0.00049899,9]
[313359427,1707228647496,-150.0,0.00049899,9]
[313359428,1707228647504,-150.0,0.00049899,9]
[313359429,1707228647513,-150.0,0.00049899,9]
[313359430,1707228647522,-150.0,0.00049899,9]
[313359431,1707228647531,-5916.41807169,0.000499,2]
[313359432,1707228647544,-1954.40060158,0.000499,2]
[313359433,1707228647554,-5168.47338942,0.000499,8]
[313359434,1707228647565,-849.58483316,0.000499,8]
[313359435,1707228647577,-2816.65730036,0.000499,8]
[313359436,1707228647588,-415.04716558,0.000499,8]
[313359437,1707228647599,-500.0,0.000499,8]
[313359438,1707228647611,-456.6805457,0.000499,8]
[313359439,1707228647821,-690.44567747,0.00034478,4]
[313359440,1707228647830,-489.86928038,0.00039999,31]
[313359441,1707228647839,-582.30520294,0.00039999,31]
[313359442,1707228647848,-5136.6299452,0.0004,2]
[313359443,1707228647860,-13277.38991971,0.0004,2]
[313359444,1707228647871,-2167.25000001,0.0004,2]
[313359445,1707228647883,-20388.30320343,0.0004,2]
[313359446,1707228647892,-1367.65393942,0.000499,8]
[313359447,1707228647903,-1673.4801357,0.000499,8]
[313359448,1707228648294,-135922.28377181,0.000499,8]
[313359449,1707228648306,-7602.4124577,0.000499,8]
[313359461,1707229832020,-322.87255,0.00022761,2]
[313359463,1707229832035,-191.01630423,0.00022761,2]
[313359465,1707229832045,-1045.82123154,0.00022762,2]
[313359467,1707229832054,-493.86713781,0.00022763,2]
[313359469,1707229832064,-1333.5816,0.000229,2]
[313359470,1707229832074,-150.0,0.00023899,2]
[313359471,1707229832083,-151.01192554,0.000239,2]
[313359472,1707229832097,-4381.66056084,0.000239,2]
[313359473,1707229832108,-620.62,0.000239,2]
[313359474,1707229832120,-1574.93616688,0.000239,2]
[313359475,1707229832130,-201.89660623,0.00024998,2]
[313359476,1707229832139,-443.10003873,0.00025,2]
[313359477,1707229832149,-350.0,0.00025,3]
[313359478,1707229832158,-168.0547895,0.00025,2]
[313359479,1707229832169,-304.69299215,0.00026991,2]
[313359480,1707229832179,-159.37408452,0.00026992,2]
[313359481,1707229832189,-202.85936825,0.00026992,2]
[313359482,1707229832199,-1589.9743297,0.00026993,2]
[313359483,1707229832208,-1907.0887071,0.00026993,2]
[313359484,1707229832218,-937.18611161,0.00026994,2]
[313359485,1707229832227,-400.0,0.00027,3]
[313359486,1707229832236,-166.15,0.00027961,2]
[313359487,1707229832245,-691.8979615,0.00028,2]
[313359488,1707229832255,-342.0,0.00028382,2]
[313359489,1707229832264,-1139.35,0.00028382,2]
[313359490,1707229832274,-342.383,0.00028382,2]
[313359491,1707229832285,-698.624,0.00028382,2]
[313359492,1707229832294,-705.0,0.00028382,2]
[313359493,1707229832303,-387.063,0.00028382,2]
[313359494,1707229832313,-150.0,0.00028453,2]
[313359495,1707229832322,-2882.0,0.000285,2]
[313359496,1707229832331,-191.51,0.00028594,2]
[313359497,1707229832341,-250.0,0.00028598,2]
[313359498,1707229832350,-500.0,0.00028781,2]
[313359499,1707229832360,-450.0,0.00029,3]
[313359500,1707229832369,-46899.35046977,0.00029499,2]
[313359503,1707229832381,-319.28,0.00029499,2]
[313359505,1707229832393,-661.43054169,0.00029499,2]
[313359506,1707229832413,-3426.65017363,0.00029499,2]
[313359507,1707229832425,-1109.28653054,0.00029499,2]
[313359511,1707229832448,-12792.4382685,0.00029499,2]
[313359513,1707229832460,-289.10078218,0.00029499,2]
[313359514,1707229832471,-8502.4858602,0.00029499,2]
[313359515,1707229832481,-806.806,0.00029499,2]
[313359516,1707229832493,-643.38334908,0.00029499,2]
[313359517,1707229832504,-6333.73788354,0.00029499,2]
[313359518,1707229832516,-1456.00192747,0.00029499,2]
[313359519,1707229832528,-3844.52115975,0.00029499,2]
[313359520,1707229832539,-713.07366266,0.00029499,2]
[313359521,1707229832551,-418.90217464,0.00029499,2]
[313359522,1707229832562,-44230.95286849,0.00029499,2]
[313359523,1707229832571,-366.23585006,0.000295,2]
[313359524,1707229832580,-499.99,0.000295,2]
[313359525,1707229832590,-300.0,0.00029537,2]
[313359526,1707229832603,-176.20084231,0.000298,2]
[313359527,1707229832612,-3000.0,0.0003,2]
[313359528,1707229832621,-585.09173402,0.0003,2]
[313359529,1707229832630,-9678.59852311,0.0003,2]
[313359530,1707229832639,-60885.33808058,0.0003,4]
[313359531,1707229832650,-263.41331257,0.0003,4]
[313359532,1707229832661,-8914.15624746,0.0003,4]
[313359533,1707229832673,-3208.40176525,0.0003,4]
[313359534,1707229832683,-155.0,0.0003,2]
[313359535,1707229832694,-300.0,0.00030907,2]
[313359536,1707229832703,-500.0,0.00031,3]
[313359537,1707229832713,-391.76131447,0.00031118,2]
[313359538,1707229832722,-180.0,0.00031644,2]
[313359539,1707229832731,-150.8,0.00032257,2]
[313359540,1707229832740,-202.85391849,0.000325,2]
[313359541,1707229832749,-191.51,0.00032704,2]
[313359542,1707229832758,-550.0,0.00033,3]
[313359543,1707229832769,-1000.0,0.00033151,120]
[313359544,1707229832780,-150.8,0.00033933,2]
[313359545,1707229832799,-766.27755389,0.00034,4]
[313359546,1707229832811,-206.4031,0.00034996,2]
[313359547,1707229832822,-600.0,0.00035,3]
[313359548,1707229832831,-450.0,0.00035,3]
[313359549,1707229832841,-1000.0,0.00035096,7]
[313359550,1707229832851,-817.29497969,0.00035096,4]
[313359551,1707229832861,-6071.80638382,0.00035096,5]
[313359552,1707229832871,-1000.0,0.00035096,7]
[313359553,1707229832881,-803.14404813,0.00035096,4]
[313359554,1707229832890,-810.39712949,0.00035096,5]
[313359555,1707229832900,-1841.50484912,0.00035096,5]
[313359556,1707229832909,-1451.64499466,0.00035096,5]
[313359557,1707229832919,-1000.0,0.00035096,7]
[313359558,1707229832929,-731.02808586,0.00035096,5]
[313359559,1707229832938,-11195.74155137,0.00035096,5]
[313359560,1707229832948,-1000.0,0.00035096,7]
[313359561,1707229832957,-2554.71470941,0.00035096,5]
[313359562,1707229832966,-619.26502438,0.00035096,5]
[313359563,1707229832975,-2414.38402771,0.00035096,5]
[313359564,1707229832985,-158.46367363,0.00035096,4]
[313359565,1707229832995,-1802.27,0.00035262,5]
[313359566,1707229833005,-500.0,0.00035353,2]
[313359567,1707229833014,-500.0,0.00035353,2]
[313359568,1707229833023,-500.0,0.00035353,2]
[313359569,1707229833033,-500.0,0.00035353,2]
[313359570,1707229833042,-500.0,0.00035353,2]
[313359571,1707229833051,-500.0,0.00035353,2]
[313359572,1707229833061,-500.0,0.00035353,2]
[313359573,1707229833070,-500.0,0.00035353,2]
[313359574,1707229833080,-500.0,0.00035353,2]
[313359575,1707229833090,-500.0,0.00035353,2]
[313359576,1707229833100,-500.0,0.00035353,2]
[313359577,1707229833109,-500.0,0.00035353,2]
[313359578,1707229833118,-500.0,0.00035353,2]
[313359579,1707229833127,-500.0,0.00035353,2]
[313359580,1707229833136,-500.0,0.00035353,2]
[313359581,1707229833145,-500.0,0.00035353,2]
[313359582,1707229833155,-500.0,0.00035353,2]
[313359583,1707229833164,-500.0,0.00035353,2]
[313359584,1707229833174,-500.0,0.00035353,2]
[313359585,1707229833183,-500.0,0.00035353,2]
[313359586,1707229833193,-500.0,0.00035353,2]
[313359587,1707229833203,-500.0,0.00035353,2]
[313359588,1707229833213,-500.0,0.00035353,2]
[313359589,1707229833222,-500.0,0.00035353,2]
[313359590,1707229833232,-500.0,0.00035353,2]
[313359591,1707229833241,-500.0,0.00035353,2]
[313359592,1707229833251,-500.0,0.00035353,2]
[313359593,1707229833260,-500.0,0.00035353,2]
[313359594,1707229833270,-500.0,0.00035353,2]
[313359595,1707229833281,-500.0,0.00035353,2]
[313359596,1707229833293,-500.0,0.00035353,2]
[313359597,1707229833304,-500.0,0.00035353,2]
[313359598,1707229833314,-500.0,0.00035353,2]
[313359599,1707229833323,-500.0,0.00035353,2]
[313359600,1707229833333,-500.0,0.00035353,2]
[313359601,1707229833342,-500.0,0.00035353,2]
[313359602,1707229833351,-1821.32,0.00035353,5]
[313359603,1707229833361,-1798.31,0.00035496,5]
[313359604,1707229833371,-150.8,0.00035609,2]
[313359605,1707229833381,-1776.42,0.00035721,5]
[313359606,1707229833390,-294.6780163,0.00036,4]
[313359607,1707229833400,-1779.21,0.00036073,5]
[313359608,1707229833409,-1803.97,0.00036614,5]
[313359609,1707229833420,-191.51,0.00036813,2]
[313359610,1707229833429,-650.0,0.00037,3]
[313359611,1707229833438,-150.8,0.00037285,2]
[313359612,1707229833448,-1840.8,0.00037439,5]
[313359613,1707229833458,-4505.48925453,0.000379,7]
[313359614,1707229833467,-150.42,0.00038356,2]
[313359615,1707229833477,-1982.34150302,0.0003888,2]
[313359616,1707229833486,-1982.34150297,0.0003888,2]
[313359617,1707229833495,-1982.34150297,0.0003888,2]
[313359618,1707229833505,-1982.34150297,0.0003888,2]
[313359619,1707229833514,-1982.34150297,0.0003888,2]
[313359620,1707229833523,-150.8,0.0003896,2]
[313359621,1707229833534,-980.44995623,0.00039,4]
[313359622,1707229833543,-700.0,0.00039,3]
[313359623,1707229833553,-500.0,0.00039995,5]
[313359624,1707229833562,-100000.0,0.0004,20]
[313359625,1707229833572,-536.39485539,0.0004,10]
[313359626,1707229833582,-7878.88903272,0.0004,4]
[313359627,1707229833596,-377.35643442,0.0004001,15]
[313359628,1707229833606,-150.8,0.00040636,2]
[313359629,1707229833615,-696.88043372,0.000409,5]
[313359630,1707229833625,-214.82587439,0.000409,16]
[313359631,1707229833642,-100000.0,0.00041,21]
[313359632,1707229833653,-25245.57194354,0.00041,16]
[313359633,1707229833857,-900.0,0.00041,16]
[313359634,1707229833869,-8704.52690776,0.00041,16]
[313359638,1707229838109,-320.0,0.00028382,2]
[313359639,1707229838118,-1119.63,0.00028382,2]
[313359640,1707229838128,-1000.0,0.00035096,7]
[313359641,1707229838138,-10438.6949857,0.00041,16]
[313359642,1707229838268,-507.52973018,0.00041,16]
[313359643,1707229838324,-590.18551452,0.00041,16]
[313359644,1707229838336,-1706.62108373,0.00041,16]
[313359645,1707229838443,-3482.39188579,0.00041,16]
[313359655,1707229840886,-465.791,0.00028382,2]
[313359656,1707229840895,-125.88850754,0.00041,16]
[313359657,1707229840907,-12640.10027744,0.00041,16]
[313359658,1707229840918,-1258.63388713,0.00041,16]
[313359659,1707229841585,-2877.34765794,0.00041,16]
[313359677,1707229843098,-14125.27219607,0.00041,16]
[313359678,1707229843110,-528.41411784,0.00041,16]
[313359679,1707229843153,-1906.91344282,0.00041,16]
[313359680,1707229843165,-21484.67866459,0.00041,16]
[313359681,1707229843263,-80995.40740341,0.00041,16]
[313359682,1707229843275,-1150.0,0.00041,16]
[313359683,1707229843288,-480.03533669,0.00041,16]
[313359684,1707229843424,-1050.87873394,0.00041,16]
[313359765,1707229846095,-374.0650919,0.00040998,4]
[313359766,1707229846105,-158.5849081,0.00040998,4]
[313359767,1707229846152,-152.90740399,0.00040998,4]
[313359768,1707229846161,-447.09259601,0.00040999,2]
[313359769,1707229846480,-1994.32672023,0.00040999,2]
[313359771,1707229846489,-467.85872115,0.00040999,4]
[313359773,1707229846499,-11385.24726685,0.00041,16]
[313359775,1707229846508,-750.0,0.00041,3]
[313359777,1707229846517,-1851.42156824,0.00041073,16]
[313359797,1707231032207,-202.85936825,0.00028422,2]
[313359798,1707231032217,-1179.22777833,0.00028422,2]
[313359799,1707231032226,-715.32819494,0.00028422,2]
[313359800,1707231032238,-221.85791667,0.00028422,2]
[313359801,1707231032246,-1251.11208333,0.00028422,2]
[313359802,1707231032265,-655.97662377,0.00028422,2]
[313359803,1707231032275,-155.0,0.00028423,2]
[313359804,1707231032284,-675.46077397,0.00028423,2]
[313359805,1707231032297,-56.78243522,0.00028423,2]
[313359806,1707231032307,-201.89660623,0.00028423,2]
[313359807,1707231032316,-41.32095855,0.00028424,2]
[313359808,1707231032327,-472.56789568,0.00028424,2]
[313359809,1707231032337,-168.0547895,0.00028424,2]
[313359810,1707231032346,-304.69299215,0.00028424,2]
[313359811,1707231032355,-691.8979615,0.00028425,2]
[313359812,1707231032364,-1589.9743297,0.00028426,2]
[313359813,1707231032374,-3652.33027644,0.00028428,2]
[313359814,1707231032383,-150.0,0.0002844,2]
[313359815,1707231032392,-150.0,0.0002844,2]
[313359816,1707231032402,-151.01192554,0.0002847,2]
[313359817,1707231032411,-4769.46982749,0.000286,2]
[313359818,1707231032423,-1272.92017302,0.000286,2]
[313359819,1707231032442,-658.14649486,0.000286,2]
[313359820,1707231032454,-4346.46350463,0.000286,2]
[313359821,1707231032464,-1860.52,0.000286,2]
[313359822,1707231032473,-366.23585006,0.000295,2]
[313359823,1707231032484,-176.20084231,0.000298,2]
[313359824,1707231032493,-3756.77983426,0.000299,2]
[313359825,1707231032505,-6451.95,0.000299,2]
[313359827,1707231032521,-2182.18,0.000299,2]
[313359829,1707231032533,-1170.87002281,0.000299,2]
[313359831,1707231032544,-277.93905889,0.000299,2]
[313359834,1707231032564,-4467.74479929,0.000299,2]
[313359867,1707231038456,-905.32298475,0.000299,2]
[313359868,1707231038466,-3000.0,0.0003,2]
[313359869,1707231038475,-9678.59852311,0.0003,2]
[313359870,1707231038485,-585.09173402,0.00030815,2]
[313359871,1707231038494,-155.0,0.00030816,2]
[313359872,1707231038504,-151.01192552,0.00030817,2]
[313359873,1707231038513,-210.0,0.00031284,3]
[313359874,1707231038522,-151.01192552,0.00033164,2]
[313359875,1707231038531,-766.27755389,0.00034659,4]
[313359876,1707231038540,-151.46,0.0003466,2]
[313359877,1707231038551,-359.51295822,0.00034912,2]
[313359878,1707231038561,-388.99403812,0.00035096,5]
[313359879,1707231038572,-854.04866135,0.00035096,5]
[313359898,1707231040985,-127.51716307,0.00035096,5]
[313359899,1707231040995,-1851.35547547,0.00035096,5]
[313359900,1707231041005,-1121.67277778,0.00035096,5]
[313359901,1707231041014,-784.90806375,0.00035096,5]
[313359902,1707231041023,-2943.06945703,0.00035096,6]
[313359903,1707231041033,-876.38701745,0.00035096,6]
[313359904,1707231041043,-1000.0,0.00035096,7]
[313359905,1707231041053,-1000.0,0.00035096,7]
[313359906,1707231041062,-6129.50724259,0.00035096,6]
[313359907,1707231041071,-1138.62459959,0.00035096,6]
[313359908,1707231041081,-151.01192552,0.00035511,2]
[313359909,1707231041090,-250.0,0.00036052,2]
[313359910,1707231041099,-2000.0,0.00036113,2]
[313359911,1707231041108,-164.7,0.00036141,2]
[313359912,1707231041117,-500.0,0.00036185,2]
[313359913,1707231041126,-2658.35100778,0.00036281,2]
[313359914,1707231041138,-608.85259995,0.00036281,2]
[313359915,1707231041149,-3282.20639227,0.00036281,2]
[313359916,1707231041158,-1316.33,0.00036317,2]
[313359917,1707231041167,-150.0,0.00036327,2]
[313359918,1707231041176,-204.76,0.0003633,2]
[313359919,1707231041185,-166.70360773,0.00036444,120]
[313359920,1707231041806,-833.29639227,0.00036444,120]
[313359922,1707231041817,-151.01192552,0.00037859,2]
[313359924,1707231041826,-500.0,0.00038356,5]
[313359926,1707231041835,-150.42,0.00038356,2]
[313359928,1707231041845,-435.52440194,0.00039019,2]
[313359930,1707231041854,-500.0,0.00039726,5]
[313359932,1707231041863,-1040.29458646,0.00039764,2]
[313359933,1707231041873,-876.20854167,0.00039767,4]
[313359935,1707231041882,-183.28,0.0003989,10]
[313359938,1707231041892,-182.3,0.0003989,10]
[313359940,1707231041901,-13505.67011812,0.000399,2]
[313359978,1707231043310,-4236.87458681,0.000399,2]
[313359979,1707231043367,-10078.69449507,0.000399,2]
[313359980,1707231043377,-157.66,0.00039976,2]
[313359981,1707231043386,-411.36312889,0.00039999,4]
[313359982,1707231043395,-1449.7097362,0.0004,20]
[313359983,1707231043481,-2170.90794213,0.0004,20]
[313359984,1707231043539,-2457.09624937,0.0004,20]
[313359985,1707231043560,-1491.13011922,0.0004,20]
[313359986,1707231043572,-1321.86465,0.0004,20]
[313359987,1707231043584,-455.39861255,0.0004,20]
[313359988,1707231043596,-411.04973192,0.0004,20]
[313359989,1707231043620,-387.74930468,0.0004,20]
[313359990,1707231043632,-359.99999994,0.0004,20]
[313360205,1707231046373,-366.23585006,0.000295,2]
[313360206,1707231046383,-929.61338397,0.00038798,4]
[313360207,1707231046393,-250.0,0.00038858,2]
[313360208,1707231046401,-271.26223485,0.00039998,4]
[313360209,1707231046411,-1177.29794369,0.00039998,4]
[313360210,1707231046423,-272.55577308,0.00039998,4]
[313360211,1707231046465,-463.69582723,0.00039998,4]
[313360212,1707231046478,-155.77200452,0.00039998,4]
[313360213,1707231046487,-421.31855691,0.0004,20]
[313360214,1707231046498,-1055.40624288,0.0004,20]
[313360215,1707231046579,-11574.99999939,0.0004,20]
[313360216,1707231046688,-1188.96273633,0.0004,20]
[313360219,1707231266611,172.11491315,0.00022,10]
[313360230,1707231749830,6159.30974182,0.00022,2]
[313360270,1707232231443,-921.67404902,0.00024796,2]
[313360271,1707232231453,-236.22638159,0.00024796,2]
[313360272,1707232231501,-2676.76502966,0.00024796,2]
[313360273,1707232231510,-321.83542021,0.00024796,2]
[313360274,1707232231519,-5235.46758708,0.00024797,2]
[313360275,1707232231528,-4716.84608242,0.00024797,2]
[313360276,1707232231537,-2328.75332884,0.00024798,2]
[313360277,1707232231546,-155.0,0.00024798,2]
[313360278,1707232231555,-493.86713781,0.00024798,2]
[313360279,1707232231565,-732.24320919,0.00024799,2]
[313360280,1707232231574,-201.89660623,0.00024799,2]
[313360281,1707232231585,-24440.12259294,0.00024799,2]
[313360282,1707232231594,-155.0,0.000248,2]
[313360283,1707232231623,-3639.56706271,0.000248,2]
[313360284,1707232231633,-3156.95036538,0.00024801,2]
[313360285,1707232231641,-3552.43,0.00024802,2]
[313360286,1707232231650,-150.0,0.00024804,2]
[313360287,1707232231659,-906.22625811,0.0002481,2]
[313360288,1707232231669,-1441.0,0.00024811,2]
[313360289,1707232231678,-152.9239484,0.00024873,2]
[313360290,1707232231687,-726.85,0.00024979,2]
[313360291,1707232231696,-729.31,0.0002498,2]
[313360292,1707232231706,-499.99,0.0002498,2]
[313360293,1707232231715,-724.18,0.00024982,2]
[313360294,1707232231724,-729.27,0.00024983,2]
[313360296,1707232231734,-725.26,0.00024986,2]
[313360298,1707232231744,-736.74,0.00024987,2]
[313360300,1707232231753,-713.33,0.00024988,2]
[313360302,1707232231762,-734.17,0.00024989,2]
[313360303,1707232231771,-531.08932322,0.0002499,2]
[313360304,1707232231781,-740.13951687,0.00024999,2]
[313360306,1707232231790,-350.0,0.00025,3]
[313360308,1707232231799,-1589.9743297,0.00025,2]
[313360309,1707232231809,-1907.0887071,0.00025,2]
[313360310,1707232231818,-937.18611161,0.00025,2]
[313360311,1707232231827,-304.69299215,0.00025,2]
[313360312,1707232231836,-168.0547895,0.00025,2]
[313360313,1707232231845,-202.85936825,0.00025,2]
[313360314,1707232231854,-400.0,0.00027,3]
[313360315,1707232231863,-152.9239484,0.00028278,2]
[313360316,1707232231873,-150.1,0.00029,6]
[313360318,1707232231882,-450.0,0.00029,3]
[313360319,1707232231892,-366.23585006,0.000295,2]
[313360321,1707232231901,-150.41,0.00029509,2]
[313360323,1707232231910,-3081.89704685,0.0003,30]
[313360325,1707232231919,-3326.05753152,0.0003,2]
[313360328,1707232231939,-4989.5801161,0.0003,2]
[313360330,1707232231950,-607.87823177,0.0003,2]
[313360333,1707232231962,-280.56667432,0.0003,2]
[313360335,1707232231981,-474.5159694,0.0003,2]
[313360336,1707232231990,-3000.0,0.0003,2]
[313360337,1707232232001,-585.09173402,0.0003,2]
[313360338,1707232232010,-155.0,0.0003,2]
[313360339,1707232232019,-2282.0,0.0003009,2]
[313360340,1707232232028,-13460.97,0.0003009,2]
[313360341,1707232232036,-1613.601,0.0003009,2]
[313360342,1707232232045,-833.393,0.0003009,2]
[313360343,1707232232054,-816.0,0.00030182,2]
[313360344,1707232232064,-2868.0,0.00030182,2]
[313360345,1707232232075,-342.0,0.00030182,2]
[313360346,1707232232084,-500.0,0.00031,3]
[313360347,1707232232093,-828.7,0.00031182,2]
[313360348,1707232232102,-168.01,0.00031338,2]
[313360349,1707232232111,-152.9239484,0.00031684,2]
[313360350,1707232232120,-158.28,0.00031749,2]
[313360351,1707232232130,-150.0,0.00031873,2]
[313360352,1707232232139,-250.0,0.00031893,2]
[313360353,1707232232148,-5457.84,0.00032006,2]
[313360354,1707232232157,-240.0,0.000328,21]
[313360355,1707232232166,-550.0,0.00033,3]
[313360356,1707232232175,-1000.0,0.00033151,120]
[313360357,1707232232184,-150.41,0.00033419,2]
[313360358,1707232232193,-153.3,0.00033554,2]
[313360359,1707232232202,-359.51295822,0.00034,2]
[313360360,1707232232212,-150.8,0.00034234,2]
[313360361,1707232232221,-250.0,0.00034344,2]
[313360362,1707232232231,-401.96625764,0.00034693,4]
[313360363,1707232232241,-52832.5711,0.00034694,2]
[313360364,1707232232251,-180.0,0.0003476,2]
[313360365,1707232232260,-213.3255,0.00034996,2]
[313360366,1707232232270,-600.0,0.00035,3]
[313360367,1707232232279,-152.9239484,0.00035089,2]
[313360368,1707232232288,-155.26881105,0.00035096,4]
[313360369,1707232232297,-391.75193815,0.00035096,5]
[313360370,1707232232306,-504.75275,0.00035096,6]
[313360371,1707232232318,-164.9983668,0.00035096,6]
[313360372,1707232232328,-1324.38125566,0.00035096,6]
[313360373,1707232232337,-394.37415786,0.00035096,6]
[313360374,1707232232346,-1000.0,0.00035096,7]
[313360375,1707232232356,-1695.7700953,0.00035096,6]
[313360376,1707232232369,-924.59425091,0.00035096,6]
[313360377,1707232232378,-168.01,0.00035256,2]
[313360378,1707232232388,-193.63,0.00035441,2]
[313360379,1707232232400,-650.0,0.00037,3]
[313360380,1707232232409,-1000.0,0.000373,2]
[313360381,1707232232419,-150.41,0.0003733,2]
[313360382,1707232232429,-537.80069765,0.00038,2]
[313360383,1707232232438,-150.42,0.00038356,2]
[313360384,1707232232447,-152.9239484,0.00038495,2]
[313360385,1707232232457,-1774.70819595,0.0003888,2]
[313360386,1707232232466,-1774.70819588,0.0003888,2]
[313360387,1707232232475,-1774.70819588,0.0003888,2]
[313360388,1707232232484,-700.0,0.00039,3]
[313360389,1707232232494,-168.01,0.00039173,2]
[313360390,1707232232503,-150.0,0.00039638,2]
[313360391,1707232232512,-1774.70819588,0.00039707,2]
[313360392,1707232232522,-455.42295319,0.00039765,4]
[313360393,1707232232531,-321.1437,0.000399,2]
[313360394,1707232232540,-65.1649923,0.00039976,2]
[313360395,1707232232553,-2934.8350077,0.00039976,2]
[313360396,1707232232563,-24912.1955923,0.0004,20]
[313360397,1707232232575,-25087.8044077,0.0004,20]
[313360398,1707232232584,-7878.88903272,0.0004,4]
[313360399,1707232232593,-1000.0,0.0004,2]
[313360400,1707232232602,-255.0,0.0004,12]
[313360401,1707232232612,-669.7365704,0.0004,20]
[313360402,1707232232620,-2253.33051575,0.0004,3]
[313360403,1707232232630,-481.63574467,0.0004,2]
[313360413,1707232240094,-502.41773203,0.00024795,2]
[313360414,1707232240822,-1818.8760931,0.00024795,2]
[313360415,1707232240834,-1090.21236701,0.00024795,2]
[313360416,1707232240949,-254.37445027,0.00024795,2]
[313360424,1707232242842,-597.19379166,0.00024795,2]
[313360425,1707232242852,-326.48457514,0.00039906,4]
[313360426,1707232242862,-155.59,0.00039907,120]
[313360427,1707232242871,-5963.63238848,0.0004,2]
[313360428,1707232242881,-200.0,0.0004,2]
[313360429,1707232242890,-4502.86036668,0.0004,15]
[313360430,1707232242899,-255.0,0.0004,12]
[313360432,1707232242909,-255.0,0.0004,12]
[313360433,1707232242918,-255.0,0.0004,12]
[313360436,1707232242927,-255.0,0.0004,12]
[313360437,1707232242937,-251.78372974,0.0004,20]
[313360438,1707232242946,-255.0,0.0004,12]
[313360439,1707232242955,-255.0,0.0004,12]
[313360440,1707232242965,-4000.0,0.0004,2]
[313360443,1707232242974,-1312.7484856,0.00040003,2]
[313360446,1707232242984,-981.1206229,0.00040176,4]
[313360449,1707232242993,-152.44043471,0.00040312,4]
[313360453,1707232243003,-352.78699785,0.00040583,4]
[313360456,1707232243012,-492.4677124,0.00040585,4]
[313360459,1707232243021,-800.0,0.000407,14]
[313360462,1707232243030,-205.0,0.000408,10]
[313360464,1707232243039,-1600.0,0.000408,14]
[313360467,1707232243049,-662.03641192,0.00040874,5]
[313360470,1707232243058,-10166.4656,0.00040875,7]
[313360472,1707232243070,-152.95749219,0.00040888,10]
[313360474,1707232243079,-176.20811699,0.00040888,15]
[313360476,1707232243088,-168.29556688,0.00040888,2]
[313360478,1707232243098,-15424.81739603,0.00040895,15]
[313360481,1707232243107,-224.93127563,0.00040895,2]
[313360483,1707232243116,-205.36682409,0.00040895,2]
[313360485,1707232243126,-512.78654966,0.00040895,2]
[313360487,1707232243135,-516.60750172,0.00040895,2]
[313360489,1707232243144,-2400.0,0.000409,14]
[313360491,1707232243153,-150.0,0.000409,2]
[313360493,1707232243162,-759.6,0.00040955,10]
[313360495,1707232243171,-39552.2928575,0.00040965,11]
[313360497,1707232243180,-94762.4246316,0.00040966,6]
[313360498,1707232243189,-39552.2928575,0.00040968,11]
[313360500,1707232243198,-118656.878572,0.00040974,11]
[313360502,1707232243207,-94762.4246316,0.00040974,6]
[313360504,1707232243216,-420.65248789,0.00040975,4]
[313360506,1707232243225,-39552.2928575,0.00040976,11]
[313360508,1707232243234,-94762.4246316,0.00040976,6]
[313360510,1707232243243,-13184.0976192,0.00040978,11]
[313360512,1707232243251,-284287.273895,0.00040984,6]
[313360514,1707232243260,-94762.4246316,0.00040988,6]
[313360516,1707232243269,-151.91,0.00040989,10]